[Event "Titled Tuesday Blitz February 14 Early 2023"]
[White "Gharibyan, Mamikon"]
[Black "Costachi, Mihnea"]
[WhiteFideId "13308300"]
[BlackFideId "1217518"]
[WhiteElo "2500"]
[BlackElo "2476"]
[Result "1-0"]
[Round "11"]
[TimeControl "180+2"]
[Date "2023.02.14"]
[WhiteClock "0:00:07"]
[BlackClock "0:00:08"]

1. e4 {[%clk 0:03:00]}  e5 {[%clk 0:02:59]} 2. Nf3 {[%clk 0:03:01]}  Nc6 {[%clk 0:02:59]} 3. Nc3 {[%clk 0:02:56]}  Nf6 {[%clk 0:02:59]} 4. h3 {[%clk 0:02:57]}  Bb4 {[%clk 0:02:54]} 5. Nd5 {[%clk 0:02:36]}  Bc5 {[%clk 0:02:51]} 6. Nxf6+ {[%clk 0:02:20]}  Qxf6 {[%clk 0:02:51]} 7. Bc4 {[%clk 0:02:19]}  d6 {[%clk 0:02:46]} 8. d3 {[%clk 0:02:19]}  h6 {[%clk 0:02:44]} 9. c3 {[%clk 0:02:16]}  Be6 {[%clk 0:02:40]} 10. b4 {[%clk 0:02:08]}  Bb6 {[%clk 0:02:32]} 11. Qb3 {[%clk 0:01:52]}  O-O {[%clk 0:02:28]} 12. a4 {[%clk 0:01:49]}  a6 {[%clk 0:02:28]} 13. a5 {[%clk 0:01:46]}  Ba7 {[%clk 0:02:29]} 14. Bd5 {[%clk 0:01:33]}  Bxd5 {[%clk 0:02:27]} 15. Qxd5 {[%clk 0:01:34]}  Qg6 {[%clk 0:02:22]} 16. O-O {[%clk 0:01:30]}  Kh8 {[%clk 0:02:18]} 17. Bd2 {[%clk 0:01:14]}  Rab8 {[%clk 0:02:04]} 18. Qc4 {[%clk 0:01:06]}  Qe6 {[%clk 0:01:53]} 19. Rfe1 {[%clk 0:00:58]}  Qe7 {[%clk 0:01:51]} 20. d4 {[%clk 0:00:48]}  f5 {[%clk 0:01:40]} 21. exf5 {[%clk 0:00:37]}  Rxf5 {[%clk 0:01:36]} 22. d5 {[%clk 0:00:37]}  Nd8 {[%clk 0:01:29]} 23. Be3 {[%clk 0:00:36]}  Bxe3 {[%clk 0:01:29]} 24. fxe3 {[%clk 0:00:34]}  Nf7 {[%clk 0:01:27]} 25. Nh4 {[%clk 0:00:34]}  Rg5 {[%clk 0:01:21]} 26. Qe4 {[%clk 0:00:34]}  Kg8 {[%clk 0:01:19]} 27. Rf1 {[%clk 0:00:32]}  Nh8 {[%clk 0:01:19]} 28. c4 {[%clk 0:00:28]}  Qe8 {[%clk 0:01:02]} 29. c5 {[%clk 0:00:26]}  Qh5 {[%clk 0:01:03]} 30. Nf5 {[%clk 0:00:24]}  Ng6 {[%clk 0:00:56]} 31. Kh2 {[%clk 0:00:23]}  Qe2 {[%clk 0:00:45]} 32. Rae1 {[%clk 0:00:14]}  Qd2 {[%clk 0:00:43]} 33. h4 {[%clk 0:00:14]}  Rxf5 {[%clk 0:00:26]} 34. Qxf5 {[%clk 0:00:14]}  Nxh4 {[%clk 0:00:27]} 35. Qg4 {[%clk 0:00:14]}  g5 {[%clk 0:00:24]} 36. cxd6 {[%clk 0:00:13]}  cxd6 {[%clk 0:00:24]} 37. Re2 {[%clk 0:00:11]}  Qxd5 {[%clk 0:00:22]} 38. e4 {[%clk 0:00:09]}  Qc4 {[%clk 0:00:17]} 39. Ref2 {[%clk 0:00:10]}  Ng6 {[%clk 0:00:03]} 40. Rf6 {[%clk 0:00:09]}  Nf8 {[%clk 0:00:03]} 41. R1f5 {[%clk 0:00:06]}  Kg7 {[%clk 0:00:02]} 42. Rf7+ {[%clk 0:00:06]}  Qxf7 {[%clk 0:00:02]} 43. Rxf7+ {[%clk 0:00:06]}  Kxf7 {[%clk 0:00:03]} 44. Qf3+ {[%clk 0:00:06]}  Ke7 {[%clk 0:00:02]} 45. Qh3 {[%clk 0:00:05]}  Ne6 {[%clk 0:00:02]} 46. Qxh6 {[%clk 0:00:05]}  Rc8 {[%clk 0:00:03]} 47. Qh7+ {[%clk 0:00:05]}  Kf6 {[%clk 0:00:03]} 48. Qxb7 {[%clk 0:00:05]}  Rc2 {[%clk 0:00:04]} 49. Qxa6 {[%clk 0:00:04]}  Ke7 {[%clk 0:00:04]} 50. Kg1 {[%clk 0:00:04]}  Nf4 {[%clk 0:00:04]} 51. g3 {[%clk 0:00:04]}  Nh3+ {[%clk 0:00:04]} 52. Kf1 {[%clk 0:00:04]}  Rf2+ {[%clk 0:00:04]} 53. Ke1 {[%clk 0:00:05]}  Rg2 {[%clk 0:00:04]} 54. Qf1 {[%clk 0:00:03]}  Rxg3 {[%clk 0:00:03]} 55. a6 {[%clk 0:00:03]}  Re3+ {[%clk 0:00:03]} 56. Kd2 {[%clk 0:00:03]}  Ra3 {[%clk 0:00:04]} 57. b5 {[%clk 0:00:03]}  Nf4 {[%clk 0:00:05]} 58. Kc2 {[%clk 0:00:03]}  g4 {[%clk 0:00:05]} 59. Kb2 {[%clk 0:00:03]}  Ra5 {[%clk 0:00:05]} 60. b6 {[%clk 0:00:03]}  g3 {[%clk 0:00:05]} 61. a7 {[%clk 0:00:03]}  g2 {[%clk 0:00:06]} 62. Qg1 {[%clk 0:00:03]}  Rb5+ {[%clk 0:00:04]} 63. Ka3 {[%clk 0:00:03]}  Ra5+ {[%clk 0:00:04]} 64. Kb4 {[%clk 0:00:04]}  Ra2 {[%clk 0:00:04]} 65. b7 {[%clk 0:00:03]}  Nh3 {[%clk 0:00:05]} 66. Qxg2 {[%clk 0:00:03]}  Rxg2 {[%clk 0:00:05]} 67. b8=Q {[%clk 0:00:03]}  Rb2+ {[%clk 0:00:06]} 68. Kc3 {[%clk 0:00:03]}  Rxb8 {[%clk 0:00:07]} 69. axb8=Q {[%clk 0:00:04]}  Ng5 {[%clk 0:00:08]} 70. Qc7+ {[%clk 0:00:04]}  Ke6 {[%clk 0:00:09]} 71. Qc6 {[%clk 0:00:03]}  Nf3 {[%clk 0:00:09]} 72. Kc4 {[%clk 0:00:03]}  Nd4 {[%clk 0:00:10]} 73. Qe8+ {[%clk 0:00:03]}  Kf6 {[%clk 0:00:10]} 74. Kd5 {[%clk 0:00:04]}  Nf3 {[%clk 0:00:09]} 75. Kxd6 {[%clk 0:00:04]}  Kg5 {[%clk 0:00:10]} 76. Qg8+ {[%clk 0:00:03]}  Kf4 {[%clk 0:00:11]} 77. Kd5 {[%clk 0:00:04]}  Ke3 {[%clk 0:00:10]} 78. Qf8 {[%clk 0:00:05]}  Nh4 {[%clk 0:00:08]} 79. Qh6+ {[%clk 0:00:04]}  Kd3 {[%clk 0:00:07]} 80. Qxh4 {[%clk 0:00:05]}  Kc3 {[%clk 0:00:06]} 81. Kxe5 {[%clk 0:00:05]}  Kb3 {[%clk 0:00:07]} 82. Kd5 {[%clk 0:00:06]}  Kc3 {[%clk 0:00:08]} 83. e5 {[%clk 0:00:06]}  Kd3 {[%clk 0:00:08]} 84. e6 {[%clk 0:00:07]} 1-0


[Site "https://www.chess.com"]

[Event "Titled Tuesday Blitz February 14 Early 2023"]
[White "Samunenkov, Ihor"]
[Black "Jaracz, Pawel"]
[WhiteFideId "14187086"]
[BlackFideId "1102222"]
[WhiteElo "2501"]
[BlackElo "2467"]
[Result "1-0"]
[Round "11"]
[TimeControl "180+2"]
[Date "2023.02.14"]
[WhiteClock "0:00:04"]
[BlackClock "0:00:06"]

1. e4 {[%clk 0:03:00]}  c6 {[%clk 0:02:56]} 2. d4 {[%clk 0:02:59]}  d5 {[%clk 0:02:56]} 3. e5 {[%clk 0:02:59]}  c5 {[%clk 0:02:56]} 4. dxc5 {[%clk 0:02:59]}  e6 {[%clk 0:02:56]} 5. Nf3 {[%clk 0:02:58]}  Bxc5 {[%clk 0:02:56]} 6. a3 {[%clk 0:02:59]}  Nd7 {[%clk 0:02:51]} 7. b4 {[%clk 0:02:48]}  Bb6 {[%clk 0:02:50]} 8. Bb2 {[%clk 0:02:48]}  a5 {[%clk 0:02:50]} 9. Nbd2 {[%clk 0:02:46]}  Ne7 {[%clk 0:02:49]} 10. Bd3 {[%clk 0:02:12]}  Ng6 {[%clk 0:02:38]} 11. g3 {[%clk 0:02:03]}  Qc7 {[%clk 0:02:36]} 12. Qe2 {[%clk 0:02:02]}  axb4 {[%clk 0:02:36]} 13. axb4 {[%clk 0:02:02]}  Rxa1+ {[%clk 0:02:36]} 14. Bxa1 {[%clk 0:02:03]}  O-O {[%clk 0:02:12]} 15. O-O {[%clk 0:02:02]}  f6 {[%clk 0:02:11]} 16. exf6 {[%clk 0:01:59]}  Nxf6 {[%clk 0:02:11]} 17. c4 {[%clk 0:01:55]}  dxc4 {[%clk 0:02:02]} 18. Nxc4 {[%clk 0:01:54]}  Ba7 {[%clk 0:02:00]} 19. Bxg6 {[%clk 0:01:33]}  hxg6 {[%clk 0:02:00]} 20. Bd4 {[%clk 0:01:33]}  b5 {[%clk 0:01:46]} 21. Nce5 {[%clk 0:01:14]}  Bxd4 {[%clk 0:01:16]} 22. Nxd4 {[%clk 0:01:14]}  Qd6 {[%clk 0:01:08]} 23. Rd1 {[%clk 0:00:56]}  Rd8 {[%clk 0:01:05]} 24. Qxb5 {[%clk 0:00:38]}  Ba6 {[%clk 0:00:59]} 25. Qc5 {[%clk 0:00:25]}  Ne4 {[%clk 0:00:46]} 26. Qxd6 {[%clk 0:00:21]}  Rxd6 {[%clk 0:00:47]} 27. Ra1 {[%clk 0:00:21]}  Rxd4 {[%clk 0:00:26]} 28. Rxa6 {[%clk 0:00:21]}  Rxb4 {[%clk 0:00:27]} 29. Rxe6 {[%clk 0:00:12]}  g5 {[%clk 0:00:22]} 30. Kg2 {[%clk 0:00:07]}  Ra4 {[%clk 0:00:09]} 31. h3 {[%clk 0:00:06]}  Ra2 {[%clk 0:00:09]} 32. Re8+ {[%clk 0:00:04]}  Kh7 {[%clk 0:00:09]} 33. Ng4 {[%clk 0:00:04]}  Nf6 {[%clk 0:00:08]} 34. Re5 {[%clk 0:00:03]}  Nxg4 {[%clk 0:00:08]} 35. hxg4 {[%clk 0:00:04]}  Kg6 {[%clk 0:00:08]} 36. Re6+ {[%clk 0:00:04]}  Kf7 {[%clk 0:00:08]} 37. Re4 {[%clk 0:00:05]}  Kf6 {[%clk 0:00:09]} 38. Kf3 {[%clk 0:00:06]}  Ra3+ {[%clk 0:00:08]} 39. Re3 {[%clk 0:00:06]}  Ra2 {[%clk 0:00:08]} 40. Rb3 {[%clk 0:00:07]}  Ra4 {[%clk 0:00:08]} 41. Ke3 {[%clk 0:00:07]}  Kg6 {[%clk 0:00:07]} 42. Kf3 {[%clk 0:00:07]}  Kh6 {[%clk 0:00:06]} 43. Re3 {[%clk 0:00:06]}  Kg6 {[%clk 0:00:06]} 44. Re6+ {[%clk 0:00:07]}  Kf7 {[%clk 0:00:06]} 45. Re4 {[%clk 0:00:06]}  Ra3+ {[%clk 0:00:06]} 46. Re3 {[%clk 0:00:06]}  Ra4 {[%clk 0:00:06]} 47. Re4 {[%clk 0:00:06]}  Ra3+ {[%clk 0:00:07]} 48. Kg2 {[%clk 0:00:05]}  Ra2 {[%clk 0:00:07]} 49. Rd4 {[%clk 0:00:03]}  Ra3 {[%clk 0:00:07]} 50. Rc4 {[%clk 0:00:03]}  Ra2 {[%clk 0:00:07]} 51. Kf3 {[%clk 0:00:04]}  Rb2 {[%clk 0:00:07]} 52. Ke3 {[%clk 0:00:04]}  Kf6 {[%clk 0:00:07]} 53. Rc6+ {[%clk 0:00:04]}  Kf7 {[%clk 0:00:06]} 54. Rc7+ {[%clk 0:00:04]}  Kf6 {[%clk 0:00:07]} 55. Rc4 {[%clk 0:00:04]}  Ra2 {[%clk 0:00:06]} 56. Rb4 {[%clk 0:00:04]}  Rb2 {[%clk 0:00:06]} 57. Rxb2 {[%clk 0:00:04]} 1-0


[Site "https://www.chess.com"]

[Event "Titled Tuesday Blitz February 14 Early 2023"]
[White "Galchenko, Matvey"]
[Black "Kamsky, Gata"]
[WhiteFideId "24175480"]
[BlackFideId "2000024"]
[WhiteElo "2438"]
[BlackElo "2665"]
[Result "1-0"]
[Round "11"]
[TimeControl "180+2"]
[Date "2023.02.14"]
[WhiteClock "0:00:03"]
[BlackClock "0:00:01"]

1. f4 {[%clk 0:03:00]}  d5 {[%clk 0:02:55]} 2. Nf3 {[%clk 0:03:00]}  Nf6 {[%clk 0:02:55]} 3. g3 {[%clk 0:03:01]}  g6 {[%clk 0:02:56]} 4. Bg2 {[%clk 0:03:01]}  Bg7 {[%clk 0:02:56]} 5. O-O {[%clk 0:03:02]}  O-O {[%clk 0:02:56]} 6. d3 {[%clk 0:03:03]}  Nc6 {[%clk 0:02:57]} 7. Nc3 {[%clk 0:03:02]}  d4 {[%clk 0:02:43]} 8. Ne4 {[%clk 0:03:00]}  Nxe4 {[%clk 0:02:38]} 9. dxe4 {[%clk 0:03:01]}  e5 {[%clk 0:02:36]} 10. e3 {[%clk 0:02:59]}  dxe3 {[%clk 0:02:35]} 11. Bxe3 {[%clk 0:02:55]}  exf4 {[%clk 0:02:34]} 12. Bxf4 {[%clk 0:02:54]}  Bxb2 {[%clk 0:02:33]} 13. Qxd8 {[%clk 0:02:46]}  Rxd8 {[%clk 0:02:29]} 14. Rab1 {[%clk 0:02:46]}  Bg7 {[%clk 0:02:24]} 15. Bxc7 {[%clk 0:02:46]}  Rd7 {[%clk 0:02:22]} 16. Bf4 {[%clk 0:02:41]}  Re7 {[%clk 0:02:16]} 17. Rfe1 {[%clk 0:02:23]}  Be6 {[%clk 0:01:58]} 18. a3 {[%clk 0:02:17]}  Rd8 {[%clk 0:01:55]} 19. Bg5 {[%clk 0:02:17]}  f6 {[%clk 0:01:55]} 20. Be3 {[%clk 0:02:06]}  Red7 {[%clk 0:01:53]} 21. Bf1 {[%clk 0:02:00]}  Bf8 {[%clk 0:01:46]} 22. a4 {[%clk 0:01:26]}  b6 {[%clk 0:01:37]} 23. Bb5 {[%clk 0:01:25]}  Rc7 {[%clk 0:01:29]} 24. Red1 {[%clk 0:01:20]}  Rxd1+ {[%clk 0:01:26]} 25. Rxd1 {[%clk 0:01:21]}  Bg4 {[%clk 0:01:26]} 26. Rf1 {[%clk 0:01:16]}  Kg7 {[%clk 0:01:20]} 27. Bf4 {[%clk 0:01:08]}  Rc8 {[%clk 0:01:13]} 28. e5 {[%clk 0:01:03]}  Be7 {[%clk 0:01:05]} 29. exf6+ {[%clk 0:00:58]}  Bxf6 {[%clk 0:01:04]} 30. Bxc6 {[%clk 0:00:53]}  Rxc6 {[%clk 0:01:02]} 31. Ne5 {[%clk 0:00:54]}  Bxe5 {[%clk 0:00:55]} 32. Bxe5+ {[%clk 0:00:55]}  Kg8 {[%clk 0:00:54]} 33. c3 {[%clk 0:00:52]}  Bh3 {[%clk 0:00:52]} 34. Ra1 {[%clk 0:00:21]}  Rc5 {[%clk 0:00:37]} 35. Bd4 {[%clk 0:00:19]}  Ra5 {[%clk 0:00:35]} 36. Kf2 {[%clk 0:00:10]}  Be6 {[%clk 0:00:32]} 37. Re1 {[%clk 0:00:09]}  Kf7 {[%clk 0:00:30]} 38. Ra1 {[%clk 0:00:05]}  Bc4 {[%clk 0:00:29]} 39. Ke3 {[%clk 0:00:06]}  Ke6 {[%clk 0:00:28]} 40. Kd2 {[%clk 0:00:06]}  Kd6 {[%clk 0:00:27]} 41. Kc2 {[%clk 0:00:04]}  g5 {[%clk 0:00:23]} 42. Kb2 {[%clk 0:00:04]}  g4 {[%clk 0:00:20]} 43. Ka3 {[%clk 0:00:03]}  Rh5 {[%clk 0:00:16]} 44. Kb4 {[%clk 0:00:02]}  Bd5 {[%clk 0:00:15]} 45. a5 {[%clk 0:00:01]}  Bc6 {[%clk 0:00:10]} 46. axb6 {[%clk 0:00:01]}  axb6 {[%clk 0:00:10]} 47. Ra2 {[%clk 0:00:01]}  Rb5+ {[%clk 0:00:08]} 48. Kc4 {[%clk 0:00:02]}  Rb1 {[%clk 0:00:08]} 49. Kd3 {[%clk 0:00:02]}  b5 {[%clk 0:00:05]} 50. Rf2 {[%clk 0:00:02]}  Re1 {[%clk 0:00:03]} 51. Rf6+ {[%clk 0:00:02]}  Kd7 {[%clk 0:00:02]} 52. Rf4 {[%clk 0:00:03]}  h5 {[%clk 0:00:01]} 53. Rf7+ {[%clk 0:00:03]} 1-0


[Site "https://www.chess.com"]

[Event "Titled Tuesday Blitz February 14 Early 2023"]
[White "Molina, Roberto Junio Brito"]
[Black "Dragnev, Valentin"]
[WhiteFideId "2109450"]
[BlackFideId "1634852"]
[WhiteElo "2403"]
[BlackElo "2593"]
[Result "1/2-1/2"]
[Round "11"]
[TimeControl "180+2"]
[Date "2023.02.14"]
[WhiteClock "0:00:17"]
[BlackClock "0:00:08"]

1. d4 {[%clk 0:03:00]}  d5 {[%clk 0:02:58]} 2. c4 {[%clk 0:02:59]}  e6 {[%clk 0:02:58]} 3. Nc3 {[%clk 0:02:57]}  Be7 {[%clk 0:02:59]} 4. cxd5 {[%clk 0:02:56]}  exd5 {[%clk 0:03:00]} 5. Bf4 {[%clk 0:02:56]}  c6 {[%clk 0:03:00]} 6. e3 {[%clk 0:02:56]}  Bd6 {[%clk 0:03:01]} 7. Bxd6 {[%clk 0:02:54]}  Qxd6 {[%clk 0:03:02]} 8. Bd3 {[%clk 0:02:53]}  Nf6 {[%clk 0:03:02]} 9. Qc2 {[%clk 0:02:51]}  O-O {[%clk 0:03:02]} 10. h3 {[%clk 0:02:48]}  a5 {[%clk 0:03:00]} 11. a3 {[%clk 0:02:47]}  Na6 {[%clk 0:03:00]} 12. Nge2 {[%clk 0:02:45]}  Nc7 {[%clk 0:03:00]} 13. Rb1 {[%clk 0:02:40]}  Re8 {[%clk 0:02:59]} 14. O-O {[%clk 0:02:38]}  g6 {[%clk 0:02:59]} 15. b4 {[%clk 0:02:37]}  axb4 {[%clk 0:02:58]} 16. axb4 {[%clk 0:02:38]}  Bd7 {[%clk 0:02:55]} 17. b5 {[%clk 0:02:35]}  c5 {[%clk 0:02:34]} 18. dxc5 {[%clk 0:02:34]}  Qxc5 {[%clk 0:02:35]} 19. Rfc1 {[%clk 0:02:26]}  Ne6 {[%clk 0:02:32]} 20. Qb2 {[%clk 0:02:19]}  Qe7 {[%clk 0:02:30]} 21. Rd1 {[%clk 0:02:13]}  Red8 {[%clk 0:02:13]} 22. Bc2 {[%clk 0:02:12]}  Be8 {[%clk 0:02:13]} 23. Bb3 {[%clk 0:02:08]}  Ra5 {[%clk 0:01:52]} 24. Bxd5 {[%clk 0:02:01]}  Nc7 {[%clk 0:01:17]} 25. Bc4 {[%clk 0:01:57]}  Rxd1+ {[%clk 0:01:16]} 26. Rxd1 {[%clk 0:01:58]}  Qc5 {[%clk 0:01:17]} 27. Bd3 {[%clk 0:01:43]}  Qa3 {[%clk 0:00:58]} 28. Rb1 {[%clk 0:01:26]}  Qxb2 {[%clk 0:00:51]} 29. Rxb2 {[%clk 0:01:27]}  Ra3 {[%clk 0:00:52]} 30. Bc4 {[%clk 0:01:15]}  Kf8 {[%clk 0:00:43]} 31. f3 {[%clk 0:01:14]}  Bd7 {[%clk 0:00:41]} 32. Kf2 {[%clk 0:01:12]}  Be6 {[%clk 0:00:35]} 33. b6 {[%clk 0:01:10]}  Ncd5 {[%clk 0:00:33]} 34. Bxd5 {[%clk 0:01:06]}  Bxd5 {[%clk 0:00:27]} 35. Nxd5 {[%clk 0:00:59]}  Nxd5 {[%clk 0:00:28]} 36. e4 {[%clk 0:01:00]}  Ne3 {[%clk 0:00:21]} 37. Rd2 {[%clk 0:00:57]}  Nc4 {[%clk 0:00:21]} 38. Rd7 {[%clk 0:00:54]}  Nxb6 {[%clk 0:00:19]} 39. Rxb7 {[%clk 0:00:53]}  Nc4 {[%clk 0:00:19]} 40. Rb4 {[%clk 0:00:51]}  Ne5 {[%clk 0:00:17]} 41. Rd4 {[%clk 0:00:49]}  h5 {[%clk 0:00:17]} 42. h4 {[%clk 0:00:48]}  Ra2 {[%clk 0:00:16]} 43. Ke3 {[%clk 0:00:45]}  Ra3+ {[%clk 0:00:16]} 44. Kf4 {[%clk 0:00:45]}  Nd3+ {[%clk 0:00:16]} 45. Kg3 {[%clk 0:00:45]}  Ra2 {[%clk 0:00:14]} 46. Rxd3 {[%clk 0:00:42]}  Rxe2 {[%clk 0:00:14]} 47. Rd7 {[%clk 0:00:42]}  Ra2 {[%clk 0:00:13]} 48. Rd1 {[%clk 0:00:42]}  Rb2 {[%clk 0:00:13]} 49. Rf1 {[%clk 0:00:42]}  Re2 {[%clk 0:00:13]} 50. Rf2 {[%clk 0:00:43]}  Re3 {[%clk 0:00:12]} 51. Kf4 {[%clk 0:00:43]}  Ra3 {[%clk 0:00:13]} 52. Rb2 {[%clk 0:00:43]}  Kg7 {[%clk 0:00:13]} 53. Rb7 {[%clk 0:00:42]}  Ra1 {[%clk 0:00:13]} 54. e5 {[%clk 0:00:39]}  Re1 {[%clk 0:00:13]} 55. Re7 {[%clk 0:00:36]}  Kf8 {[%clk 0:00:13]} 56. Rd7 {[%clk 0:00:36]}  Re2 {[%clk 0:00:14]} 57. g3 {[%clk 0:00:36]}  Re1 {[%clk 0:00:13]} 58. Rd5 {[%clk 0:00:36]}  Kg7 {[%clk 0:00:13]} 59. Kg5 {[%clk 0:00:34]}  Re3 {[%clk 0:00:13]} 60. Kf4 {[%clk 0:00:32]}  Re1 {[%clk 0:00:13]} 61. Rd4 {[%clk 0:00:32]}  Kf8 {[%clk 0:00:12]} 62. Re4 {[%clk 0:00:33]}  Ra1 {[%clk 0:00:12]} 63. Kg5 {[%clk 0:00:32]}  Kg7 {[%clk 0:00:12]} 64. e6 {[%clk 0:00:29]}  Ra5+ {[%clk 0:00:12]} 65. Kf4 {[%clk 0:00:29]}  fxe6 {[%clk 0:00:11]} 66. Rxe6 {[%clk 0:00:29]}  Ra4+ {[%clk 0:00:12]} 67. Re4 {[%clk 0:00:30]}  Ra5 {[%clk 0:00:12]} 68. Re5 {[%clk 0:00:30]}  Ra4+ {[%clk 0:00:12]} 69. Kg5 {[%clk 0:00:31]}  Ra7 {[%clk 0:00:12]} 70. f4 {[%clk 0:00:28]}  Kh7 {[%clk 0:00:07]} 71. f5 {[%clk 0:00:25]}  gxf5 {[%clk 0:00:08]} 72. Rxf5 {[%clk 0:00:21]}  Rg7+ {[%clk 0:00:09]} 73. Kf4 {[%clk 0:00:22]}  Kh6 {[%clk 0:00:08]} 74. Rf6+ {[%clk 0:00:22]}  Kh7 {[%clk 0:00:08]} 75. Rf8 {[%clk 0:00:23]}  Rg4+ {[%clk 0:00:09]} 76. Kf3 {[%clk 0:00:22]}  Ra4 {[%clk 0:00:09]} 77. Rf4 {[%clk 0:00:23]}  Ra3+ {[%clk 0:00:09]} 78. Kg2 {[%clk 0:00:24]}  Kg6 {[%clk 0:00:09]} 79. Rf3 {[%clk 0:00:24]}  Ra2+ {[%clk 0:00:10]} 80. Rf2 {[%clk 0:00:25]}  Ra3 {[%clk 0:00:10]} 81. Rb2 {[%clk 0:00:25]}  Rc3 {[%clk 0:00:10]} 82. Kf2 {[%clk 0:00:26]}  Ra3 {[%clk 0:00:10]} 83. Re2 {[%clk 0:00:26]}  Rb3 {[%clk 0:00:10]} 84. Re3 {[%clk 0:00:26]}  Rb2+ {[%clk 0:00:09]} 85. Kf3 {[%clk 0:00:27]}  Rb4 {[%clk 0:00:10]} 86. Re4 {[%clk 0:00:27]}  Rb1 {[%clk 0:00:09]} 87. Re6+ {[%clk 0:00:27]}  Kg7 {[%clk 0:00:07]} 88. Kf4 {[%clk 0:00:25]}  Rb4+ {[%clk 0:00:07]} 89. Kf5 {[%clk 0:00:25]}  Rb5+ {[%clk 0:00:04]} 90. Re5 {[%clk 0:00:25]}  Rb3 {[%clk 0:00:04]} 91. Kf4 {[%clk 0:00:24]}  Rb4+ {[%clk 0:00:04]} 92. Kf5 {[%clk 0:00:24]}  Rb3 {[%clk 0:00:05]} 93. Kf4 {[%clk 0:00:14]}  Rb4+ {[%clk 0:00:05]} 94. Re4 {[%clk 0:00:10]}  Rb3 {[%clk 0:00:05]} 95. Rd4 {[%clk 0:00:11]}  Kg6 {[%clk 0:00:05]} 96. Rd6+ {[%clk 0:00:11]}  Kg7 {[%clk 0:00:05]} 97. Rd4 {[%clk 0:00:09]}  Kg6 {[%clk 0:00:05]} 98. Rc4 {[%clk 0:00:10]}  Ra3 {[%clk 0:00:05]} 99. Rb4 {[%clk 0:00:10]}  Rc3 {[%clk 0:00:05]} 100. Rb6+ {[%clk 0:00:10]}  Kg7 {[%clk 0:00:05]} 101. Re6 {[%clk 0:00:10]}  Rc4+ {[%clk 0:00:05]} 102. Ke3 {[%clk 0:00:10]}  Rc3+ {[%clk 0:00:05]} 103. Kf2 {[%clk 0:00:11]}  Rc2+ {[%clk 0:00:05]} 104. Kg1 {[%clk 0:00:11]}  Rc3 {[%clk 0:00:06]} 105. Kg2 {[%clk 0:00:11]}  Rc2+ {[%clk 0:00:07]} 106. Kh3 {[%clk 0:00:11]}  Rc3 {[%clk 0:00:07]} 107. Re1 {[%clk 0:00:12]}  Rb3 {[%clk 0:00:07]} 108. Rf1 {[%clk 0:00:12]}  Kg6 {[%clk 0:00:07]} 109. Rd1 {[%clk 0:00:12]}  Ra3 {[%clk 0:00:08]} 110. Rd6+ {[%clk 0:00:12]}  Kg7 {[%clk 0:00:08]} 111. Rc6 {[%clk 0:00:13]}  Rb3 {[%clk 0:00:08]} 112. Rc5 {[%clk 0:00:14]}  Kg6 {[%clk 0:00:07]} 113. Rg5+ {[%clk 0:00:14]}  Kh6 {[%clk 0:00:08]} 114. Kg2 {[%clk 0:00:15]}  Ra3 {[%clk 0:00:07]} 115. Rf5 {[%clk 0:00:14]}  Kg6 {[%clk 0:00:07]} 116. Rf2 {[%clk 0:00:15]}  Rb3 {[%clk 0:00:07]} 117. Re2 {[%clk 0:00:15]}  Rc3 {[%clk 0:00:07]} 118. Kf2 {[%clk 0:00:16]}  Rb3 {[%clk 0:00:07]} 119. Re6+ {[%clk 0:00:16]}  Kg7 {[%clk 0:00:07]} 120. Re3 {[%clk 0:00:17]}  Rb2+ {[%clk 0:00:08]} 121. Kf3 {[%clk 0:00:17]}  Rb4 {[%clk 0:00:08]} 122. Re4 {[%clk 0:00:17]} 1/2-1/2


[Site "https://www.chess.com"]

[Event "Titled Tuesday Blitz February 14 Early 2023"]
[White "Csonka, Balazs"]
[Black "Mendonca, Leon Luke"]
[WhiteFideId "742910"]
[BlackFideId "35028561"]
[WhiteElo "2496"]
[BlackElo "2603"]
[Result "0-1"]
[Round "11"]
[TimeControl "180+2"]
[Date "2023.02.14"]
[WhiteClock "0:00:02"]
[BlackClock "0:00:02"]

1. d4 {[%clk 0:03:00]}  Nf6 {[%clk 0:02:59]} 2. c4 {[%clk 0:03:00]}  e6 {[%clk 0:02:59]} 3. Nc3 {[%clk 0:02:53]}  Bb4 {[%clk 0:02:56]} 4. e3 {[%clk 0:02:49]}  O-O {[%clk 0:02:55]} 5. Bd2 {[%clk 0:02:48]}  b6 {[%clk 0:02:53]} 6. Nf3 {[%clk 0:02:45]}  Bb7 {[%clk 0:02:54]} 7. Bd3 {[%clk 0:02:45]}  d6 {[%clk 0:02:54]} 8. O-O {[%clk 0:02:44]}  Nbd7 {[%clk 0:02:54]} 9. a3 {[%clk 0:02:44]}  Bxc3 {[%clk 0:02:54]} 10. Bxc3 {[%clk 0:02:45]}  Ne4 {[%clk 0:02:53]} 11. Be1 {[%clk 0:02:45]}  a5 {[%clk 0:02:50]} 12. b3 {[%clk 0:02:30]}  Qe7 {[%clk 0:02:48]} 13. Nd2 {[%clk 0:02:28]}  f5 {[%clk 0:02:43]} 14. f3 {[%clk 0:02:27]}  Nxd2 {[%clk 0:02:40]} 15. Qxd2 {[%clk 0:02:20]}  e5 {[%clk 0:02:38]} 16. Bc2 {[%clk 0:02:09]}  Qg5 {[%clk 0:02:33]} 17. dxe5 {[%clk 0:01:50]}  Rad8 {[%clk 0:01:53]} 18. exd6 {[%clk 0:01:40]}  Nf6 {[%clk 0:01:44]} 19. Bg3 {[%clk 0:01:31]}  Nh5 {[%clk 0:01:43]} 20. Be5 {[%clk 0:01:12]}  f4 {[%clk 0:01:10]} 21. exf4 {[%clk 0:01:01]}  Nxf4 {[%clk 0:01:10]} 22. Bxf4 {[%clk 0:00:58]}  Rxf4 {[%clk 0:01:11]} 23. Qe3 {[%clk 0:00:48]}  Rxd6 {[%clk 0:00:31]} 24. Rae1 {[%clk 0:00:30]}  Qf6 {[%clk 0:00:07]} 25. Qe7 {[%clk 0:00:21]}  Qxe7 {[%clk 0:00:06]} 26. Rxe7 {[%clk 0:00:22]}  Rf7 {[%clk 0:00:06]} 27. Bxh7+ {[%clk 0:00:18]}  Kf8 {[%clk 0:00:06]} 28. Rxf7+ {[%clk 0:00:19]}  Kxf7 {[%clk 0:00:07]} 29. Bc2 {[%clk 0:00:17]}  Bc8 {[%clk 0:00:05]} 30. Rd1 {[%clk 0:00:16]}  Rf6 {[%clk 0:00:05]} 31. Kf2 {[%clk 0:00:15]}  Be6 {[%clk 0:00:05]} 32. Rd4 {[%clk 0:00:08]}  Ke7 {[%clk 0:00:05]} 33. Ke3 {[%clk 0:00:08]}  Rh6 {[%clk 0:00:05]} 34. h4 {[%clk 0:00:07]}  Rh8 {[%clk 0:00:05]} 35. Kf2 {[%clk 0:00:06]}  Kf6 {[%clk 0:00:05]} 36. a4 {[%clk 0:00:05]}  Ke5 {[%clk 0:00:05]} 37. Re4+ {[%clk 0:00:05]}  Kd6 {[%clk 0:00:05]} 38. Ke3 {[%clk 0:00:04]}  Rh6 {[%clk 0:00:05]} 39. Kd2 {[%clk 0:00:03]}  Kc5 {[%clk 0:00:03]} 40. Kc3 {[%clk 0:00:03]}  Kd6 {[%clk 0:00:03]} 41. Rf4 {[%clk 0:00:02]}  Ke7 {[%clk 0:00:03]} 42. Re4 {[%clk 0:00:02]}  Kd6 {[%clk 0:00:03]} 43. g3 {[%clk 0:00:03]}  Rf6 {[%clk 0:00:03]} 44. f4 {[%clk 0:00:03]}  Kc6 {[%clk 0:00:03]} 45. Re3 {[%clk 0:00:03]}  Kd6 {[%clk 0:00:03]} 46. Re5 {[%clk 0:00:04]}  Bd7 {[%clk 0:00:03]} 47. Rg5 {[%clk 0:00:04]}  Rf7 {[%clk 0:00:03]} 48. Bg6 {[%clk 0:00:04]}  Re7 {[%clk 0:00:03]} 49. Kd2 {[%clk 0:00:05]}  Bc6 {[%clk 0:00:02]} 50. Bd3 {[%clk 0:00:05]}  Bf3 {[%clk 0:00:03]} 51. Rg6+ {[%clk 0:00:03]}  Kc5 {[%clk 0:00:03]} 52. Kc3 {[%clk 0:00:04]}  Bc6 {[%clk 0:00:01]} 53. h5 {[%clk 0:00:03]}  Bf3 {[%clk 0:00:01]} 54. h6 {[%clk 0:00:03]}  gxh6 {[%clk 0:00:02]} 55. Rxh6 {[%clk 0:00:04]}  Re3 {[%clk 0:00:02]} 56. Kd2 {[%clk 0:00:03]}  Re7 {[%clk 0:00:02]} 57. Rf6 {[%clk 0:00:02]}  Kb4 {[%clk 0:00:02]} 0-1


[Site "https://www.chess.com"]